bitfinex/quotes_ETHUSD_20240621
["timestamp","ask_amount","ask_price","bid_price","bid_amount"]
[1718984012059,2.07035869,3511.9,3511.7,2.27809]
[1718984012790,2.07035869,3511.9,3511.8,2.27803]
[1718984013314,2.07035869,3511.9,3511.7,2.27808]
[1718984013790,2.07035869,3511.9,3511.7,2.27809]
[1718984014015,2.07035869,3511.9,3511.8,2.27803]
[1718984014496,1.78948841,3512.4,3512.2,2.27776]
[1718984014671,2.07014261,3512.3,3512.2,2.27776]
[1718984014878,2.07014261,3512.3,3512.1,2.27783]
[1718984015187,2.07014261,3512.3,3512.2,2.27777]
[1718984016014,4.34786261,3512.3,3511.8,2.27798]
[1718984016191,3.85963102,3512.2,3511.8,2.27798]
[1718984016393,3.85963102,3512.2,3509.8,0.59656265]
[1718984016394,2.07014261,3512.1,3511.3,2.27835]
[1718984016592,2.27808,3511.8,3511.2,9.64841]
[1718984016915,1.79028842,3511.5,3511.2,7.37]
[1718984017087,2.07014261,3511.4,3511.2,7.37]
[1718984017288,6.13875103,3511.4,3511.2,7.37]
[1718984017606,2.07014261,3511.3,3511.2,7.37]
[1718984018025,2.07014261,3511.3,3511.2,11.92684]
[1718984018188,1.79028842,3511.6,3511.3,2.27835]
[1718984018395,4.34876665,3511.5,3511.2,11.068958]
[1718984018591,2.07053665,3511.4,3511.2,11.068958]
[1718984018794,2.07053665,3511.4,3511.3,4.5567]
[1718984019015,2.07052745,3511.5,3511.4,2.27829]
[1718984019220,2.07052311,3511.6,3511.5,2.27822]
[1718984020230,2.07052311,3511.6,3511.5,6.83466]
[1718984020747,1.79081092,3511.9,3511.7,2.27808]
[1718984020954,2.07033405,3511.8,3511.7,2.27808]
[1718984021129,3.86114497,3511.8,3511.7,2.733704]
[1718984021452,2.07033405,3511.8,3511.7,2.733704]
[1718984021806,2.07033405,3511.9,3511.7,2.733704]
[1718984022241,2.07033405,3511.8,3511.7,7.289884]
[1718984022427,1.79076022,3512.2,3512.1,2.27783]
[1718984022631,2.0701694,3512.2,3512.1,2.27783]
[1718984024345,2.0701694,3512.2,3512.1,4.55566]
[1718984024529,2.07011682,3512.3,3512.2,2.27777]
[1718984024842,2.07011241,3512.3,3512.1,2.2778]
[1718984025146,1.79024094,3512.4,3512.2,2.27777]
[1718984025355,2.07009968,3512.3,3512.2,2.27777]
[1718984025706,2.07009968,3512.4,3512.2,2.27777]
[1718984025906,2.07009968,3512.3,3512.2,2.27777]
[1718984026141,2.07009968,3512.4,3512.2,2.27777]
[1718984026726,2.2777,3512.3,3511.9,2.27791]
[1718984026925,2.2777,3512.3,3512.0,2.27786]
[1718984027160,2.06999794,3512.2,3511.6,2.27812]
[1718984027339,2.06999794,3512.2,3511.9,2.27793]
[1718984027557,2.06999794,3512.2,3511.9,2.27791]
[1718984027770,2.06999794,3512.2,3510.3,13.420554]
[1718984027771,3.85993187,3512.2,3511.8,2.27798]
[1718984028074,2.06999794,3512.1,3511.9,2.27795]
[1718984028581,6.13778187,3512.1,3511.8,2.27801]
[1718984028734,2.06999794,3512.0,3511.8,2.27801]
[1718984029441,2.06999794,3511.9,3511.8,4.55604]
[1718984029647,2.06999794,3511.9,3511.8,2.27801]
[1718984029952,2.06999794,3512.1,3511.8,2.27801]
[1718984030142,2.06999794,3512.0,3511.8,2.27801]
[1718984030532,2.06999794,3512.0,3511.7,2.27808]
[1718984031074,6.13808819,3512.0,3511.7,2.27808]
[1718984031263,2.06999794,3511.9,3511.7,2.27808]
[1718984031645,4.34797794,3511.9,3511.4,2.27824]
[1718984031850,4.06809025,3512.0,3511.4,2.27828]
[1718984031851,2.27814,3511.7,3511.4,2.27828]
[1718984032075,2.27808,3511.8,3511.2,9.64841]
[1718984032276,2.07029254,3511.7,3511.2,9.64841]
[1718984032436,3.86048279,3511.7,3511.2,9.64841]
[1718984032635,2.07029254,3511.6,3511.4,2.27829]
[1718984033166,2.07029254,3511.6,3511.5,2.27822]
[1718984033347,2.07029254,3511.7,3510.9,4.5435]
[1718984033548,2.07029254,3511.6,3511.5,2.27822]
[1718984033738,4.06836748,3511.9,3511.6,2.27816]
[1718984033945,2.07037958,3511.8,3511.4,2.27826]
[1718984034157,2.07037958,3511.7,3511.6,2.27811]
[1718984034382,1.79039748,3511.9,3511.7,2.27809]
[1718984034550,2.070336,3511.8,3511.7,2.27809]
[1718984035886,2.27785,3512.1,3511.8,2.27803]
[1718984036182,3.86071238,3512.0,3511.9,2.27796]
[1718984036361,2.07029221,3512.0,3511.9,6.83388]
[1718984036559,2.07029221,3512.0,3511.4,2.27826]
[1718984036560,1.79042017,3512.5,3512.3,2.2777]
[1718984036878,2.07003155,3512.4,3512.2,2.27776]
[1718984037369,2.07003155,3512.4,3512.3,2.2777]
[1718984037678,2.07003155,3512.4,3511.9,2.27791]
[1718984037837,2.07003155,3512.4,3512.2,2.27771]
[1718984038895,2.07003155,3512.3,3512.2,2.27771]
[1718984039254,3.86024555,3512.5,3512.2,2.27771]
[1718984039439,2.07003155,3512.4,3512.2,2.27771]
[1718984039976,2.07003155,3512.3,3512.2,2.27771]
[1718984040355,2.07003155,3512.3,3512.2,4.55548]
[1718984040555,2.06996303,3512.4,3512.3,2.2777]
[1718984040758,2.06997474,3512.4,3512.3,2.2777]
[1718984040972,2.27733,3512.9,3512.6,2.27748]
[1718984041289,1.79075504,3513.2,3513.0,2.27725]
[1718984041447,3.86031842,3513.1,3512.8,2.27738]
[1718984041787,2.06957334,3513.0,3512.9,4.55462]
[1718984041938,2.06949022,3513.1,3512.7,2.27739]
[1718984042141,1.79074508,3513.3,3513.2,2.27712]
[1718984042385,4.06773508,3513.4,3512.9,2.27726]
[1718984042541,2.0694747,3513.3,3512.9,2.27726]
[1718984042736,2.0694747,3513.3,3513.0,2.27724]
[1718984043043,2.0694747,3513.3,3513.2,2.27712]
[1718984043681,1.78859057,3513.6,3513.1,2.27719]
[1718984043891,2.06938804,3513.5,3513.4,2.27699]
[1718984044200,2.06936074,3513.5,3513.4,2.27699]
[1718984044352,4.06533057,3513.8,3513.5,2.27693]
[1718984044694,2.06935656,3513.7,3513.3,2.27699]
[1718984044859,6.13403521,3513.7,3513.4,2.27699]
[1718984045047,2.06935656,3513.6,3513.4,2.27699]
[1718984045548,2.27706,3513.3,3512.7,2.27742]
[1718984045768,2.277,3513.4,3513.0,2.27719]
[1718984046087,2.0694846,3513.3,3513.0,2.27724]
[1718984046287,2.27712,3513.2,3512.7,2.27744]
[1718984046471,2.27712,3513.2,3512.6,7.37]
[1718984046472,2.06966571,3513.1,3512.6,7.37]
[1718984046646,2.27732,3512.9,3512.6,2.27749]
[1718984046842,2.27732,3512.9,3512.5,2.27757]
[1718984047172,2.27732,3512.9,3512.6,2.27751]
[1718984047749,2.27726,3513.0,3512.7,2.27742]
[1718984048288,1.78708425,3513.3,3512.8,2.27737]
[1718984048576,1.78708425,3513.3,3512.2,3.0]
[1718984048577,2.06962464,3513.2,3513.1,4.55438]
[1718984048786,2.06962464,3513.2,3513.0,2.27719]
[1718984048787,4.06388425,3513.7,3513.4,2.27698]
[1718984049079,2.06944627,3513.6,3513.4,2.27698]
[1718984049290,2.06944627,3513.6,3513.1,2.27719]
[1718984049693,2.27693,3513.5,3513.2,2.27711]
[1718984049903,2.27688,3513.6,3513.3,2.27705]
[1718984050207,2.2773,3513.0,3512.7,2.27742]
[1718984050369,2.27699,3513.4,3512.6,7.37]
[1718984050370,2.2772,3513.1,3512.8,2.27738]
[1718984050891,2.2772,3513.1,3512.6,9.6475]
[1718984050892,4.5549,3512.7,3512.6,7.37]
[1718984051102,4.5549,3512.7,3512.0,2.27789]
[1718984051103,2.27769,3512.4,3512.0,2.27789]
[1718984052305,2.27784,3512.1,3511.8,2.27801]
[1718984053515,2.27804,3511.8,3511.5,2.27822]
[1718984053790,2.2779,3512.0,3511.6,2.27815]
[1718984053993,2.27803,3511.8,3511.4,2.27828]
[1718984054200,2.27803,3511.8,3511.4,4.55656]
[1718984054360,2.27803,3511.8,3511.4,2.27828]
[1718984054956,2.2779,3512.0,3511.7,2.27808]
[1718984055265,2.2779,3512.0,3511.5,2.27822]
[1718984056559,2.27798,3511.9,3511.5,2.27822]
[1718984056760,2.27803,3511.8,3511.3,2.2783]
[1718984056964,2.07043494,3511.7,3511.1,3.0]
[1718984057164,2.27823,3511.5,3510.8,9.64867]
[1718984057383,2.27848,3511.2,3510.8,2.27867]
[1718984057585,2.27829,3511.4,3510.9,2.27859]
[1718984058065,2.27849,3511.1,3510.8,2.27868]
[1718984058913,2.27851,3511.1,3510.8,2.27862]
[1718984059062,2.27841,3511.3,3510.9,2.27861]
[1718984059466,2.27841,3511.3,3511.0,2.27854]
[1718984059813,4.55682,3511.3,3510.9,2.2786]
[1718984059972,2.27841,3511.3,3510.9,2.2786]
[1718984060670,2.2783,3511.4,3511.0,2.27855]
[1718984060861,2.2783,3511.4,3511.0,2.27849]
[1718984061062,2.27836,3511.3,3511.0,2.27849]
[1718984061902,2.27823,3511.5,3511.1,2.27848]
[1718984062706,2.27829,3511.4,3511.1,2.27848]
[1718984063801,2.27847,3511.2,3510.6,2.27881]
[1718984064093,2.27869,3510.8,3510.5,2.27886]
[1718984064346,2.27869,3510.8,3510.3,2.279]
[1718984064347,2.27874,3510.8,3510.3,2.279]
[1718984064507,2.27874,3510.8,3510.3,5.279]
[1718984064707,2.27874,3510.8,3510.4,2.27891]
[1718984064929,2.27875,3510.7,3510.4,2.27891]
[1718984065129,2.27863,3510.9,3510.5,2.27882]
[1718984065130,2.27862,3510.9,3510.5,2.27882]
[1718984065343,2.2787,3510.8,3510.5,2.27882]
[1718984065712,2.2787,3510.8,3510.4,2.27894]
[1718984066231,2.27876,3510.7,3510.4,2.27894]
[1718984066946,2.27876,3510.7,3510.1,2.106]
[1718984066947,2.27893,3510.5,3510.1,4.38512]
[1718984069045,2.27893,3510.5,3510.2,2.27905]
[1718984069847,2.27875,3510.7,3510.3,2.279]
[1718984070147,2.27862,3510.9,3510.6,2.27879]
[1718984070361,4.06929657,3511.4,3510.5,2.27881]
[1718984070645,2.27868,3510.8,3510.5,2.27881]
[1718984070808,2.27875,3510.7,3510.2,2.27905]
[1718984071011,2.27887,3510.6,3510.2,2.27905]
[1718984071251,2.27887,3510.6,3510.3,2.27899]
[1718984071825,2.27876,3510.7,3510.3,2.279]
[1718984072031,2.27874,3510.8,3510.4,2.27893]
[1718984072255,2.27867,3510.9,3510.4,2.27893]
[1718984073766,2.27874,3510.7,3510.4,2.27893]
[1718984074060,2.27867,3510.9,3510.5,2.27886]
[1718984074359,2.27874,3510.7,3510.3,2.27899]
[1718984074542,2.27885,3510.6,3510.2,2.27902]
[1718984074743,2.27875,3510.7,3510.3,2.279]
[1718984074935,2.27881,3510.6,3510.2,2.27905]
[1718984075829,2.27881,3510.6,3509.8,3.0]
[1718984075830,0.455756,3510.5,3509.8,3.0]
[1718984076028,0.455756,3510.5,3509.1,7.37]
[1718984076029,2.27938,3509.8,3509.1,7.37]
[1718984076372,2.27953,3509.5,3509.2,2.27971]
[1718984076522,2.27959,3509.4,3509.0,2.27984]
[1718984076726,2.27959,3509.4,3509.0,5.27984]
[1718984076922,2.27959,3509.4,3509.1,2.27978]
[1718984077158,2.2795,3509.6,3509.0,3.0]
[1718984077372,2.27955,3509.5,3509.2,2.2797]
[1718984078246,2.27955,3509.5,3508.7,4.38603]
[1718984078247,2.27962,3509.4,3508.7,4.38603]
[1718984078560,2.27998,3508.8,3508.5,2.28017]
[1718984078734,2.27992,3508.9,3508.5,2.28017]
[1718984078932,2.27992,3508.9,3508.6,2.28009]
[1718984080365,2.27983,3509.1,3508.1,4.38641]
[1718984080366,2.28009,3508.7,3508.3,2.2803]
[1718984080600,2.28011,3508.6,3508.3,3.185621]
[1718984080731,7.4,3509.9,3508.5,2.106]
[1718984080930,2.27978,3509.1,3508.8,2.27992]
[1718984081541,2.27969,3509.3,3508.9,2.27991]
[1718984081734,2.4623,3510.3,3509.0,2.27982]
[1718984081928,2.27955,3509.5,3509.1,2.27977]
[1718984082333,2.27973,3509.2,3508.6,0.3561321]
[1718984082734,2.27973,3509.2,3508.9,2.2799]
[1718984082968,2.27959,3509.4,3508.9,2.27985]
[1718984083190,2.27959,3509.4,3509.0,2.27982]
[1718984083349,2.27966,3509.3,3509.0,2.27982]
[1718984083558,2.27959,3509.4,3509.1,2.27978]
[1718984083784,2.27959,3509.4,3508.6,2.6362021]
[1718984083785,2.27966,3509.3,3509.0,2.27984]
[1718984084951,2.27953,3509.5,3509.2,2.27972]
[1718984085303,2.2793,3509.9,3509.4,2.27956]
[1718984085304,2.27927,3509.9,3509.4,2.27956]
[1718984085457,2.27934,3509.8,3509.4,2.27953]
[1718984085656,2.2792,3510.0,3509.5,2.27952]
[1718984085854,2.27898,3510.4,3509.5,2.27952]
[1718984085855,2.27926,3509.9,3509.6,2.27944]
[1718984086092,2.27934,3509.8,3509.5,2.27952]
[1718984086794,2.27919,3510.1,3509.7,2.27938]
[1718984086957,2.27938,3509.8,3509.4,2.27958]
[1718984087353,12.02173,3510.8,3509.2,2.27966]
[1718984087568,2.2795,3509.6,3509.2,2.27966]
[1718984087751,2.27904,3510.3,3509.1,2.27978]
[1718984087972,2.27949,3509.6,3509.2,2.27971]
[1718984088558,2.27949,3509.6,3508.7,7.37]
[1718984088559,2.27977,3509.2,3508.7,7.37]
[1718984088867,2.27974,3509.2,3508.8,2.27997]
[1718984089298,2.2798,3509.1,3508.8,2.27997]
[1718984089591,2.2799,3509.0,3508.7,7.37]
[1718984090161,0.455956,3509.0,3508.2,4.38633]
[1718984090408,2.28024,3508.5,3508.1,2.28042]
[1718984090897,2.28024,3508.4,3508.0,2.28049]
[1718984091091,2.28031,3508.3,3508.0,2.28049]
[1718984091308,2.28031,3508.3,3507.9,2.28055]
[1718984091957,2.28156,3506.4,3505.8,2.28186]
[1718984092161,2.28127,3506.9,3505.5,2.4202]
[1718984092162,2.28166,3506.3,3505.5,2.4202]
[1718984092379,2.28173,3506.2,3505.6,2.52402]
[1718984092596,2.3875,3507.1,3505.6,0.24202]
[1718984092804,2.28162,3506.3,3505.3,2.28225]
[1718984092972,2.28198,3505.8,3505.3,2.28225]
[1718984093181,2.3875,3507.1,3505.1,2.28234]
[1718984093389,2.3875,3507.1,3505.9,2.2818]
[1718984093569,2.28154,3506.4,3505.9,2.2818]
[1718984093782,2.28148,3506.5,3505.8,2.28188]
[1718984093965,2.2815,3506.5,3505.4,5.09717]
[1718984094172,2.28161,3506.3,3505.8,2.2819]
[1718984094379,2.28161,3506.3,3505.5,0.5762694]
[1718984094589,2.2815,3506.5,3505.5,0.5762694]
[1718984094798,2.28129,3506.8,3505.2,0.665524]
[1718984094799,2.28128,3506.8,3506.1,2.28173]
[1718984095382,2.28157,3506.4,3505.9,2.28185]
[1718984095562,2.28157,3506.4,3506.0,2.28179]
[1718984095769,2.28157,3506.4,3505.9,2.28186]
[1718984096412,2.28172,3506.2,3505.7,2.28194]
[1718984096709,2.28163,3506.3,3505.4,2.28219]
[1718984096864,2.28185,3506.0,3505.4,2.28219]
[1718984097367,2.28185,3506.0,3505.3,2.2822]
[1718984097368,2.28206,3505.6,3505.3,2.2822]
[1718984097592,2.2818,3506.0,3505.3,2.2822]
[1718984097778,2.28186,3505.9,3505.5,2.28206]
[1718984097980,2.28201,3505.7,3505.3,2.2822]
[1718984098373,2.28197,3505.8,3504.7,2.28264]
[1718984098682,2.28224,3505.4,3505.0,2.28245]
[1718984099076,2.28213,3505.5,3505.1,2.28238]
[1718984099283,2.2822,3505.4,3505.0,2.28245]
[1718984099870,2.28159,3506.4,3504.7,2.28259]
[1718984100112,2.28202,3505.7,3505.2,2.28225]
[1718984100279,2.28207,3505.6,3505.2,2.28225]
[1718984100479,2.28178,3506.1,3505.2,2.28225]
[1718984100689,2.28198,3505.8,3505.3,2.28225]
[1718984101016,2.28183,3506.0,3505.4,2.28213]
[1718984101377,2.28187,3505.9,3505.6,2.28204]
[1718984101578,2.28187,3505.9,3505.4,4.56426]
[1718984101796,2.28187,3505.9,3505.5,2.2821]
[1718984102004,2.28208,3505.6,3505.1,2.28238]
[1718984102176,2.2822,3505.4,3504.9,4.56493]
[1718984102394,2.2822,3505.4,3505.0,2.28243]
[1718984102593,2.28196,3505.8,3504.7,2.28259]
[1718984102818,2.2822,3505.4,3505.0,2.28244]
[1718984103195,2.28232,3505.3,3504.8,2.28255]
[1718984103532,2.28224,3505.4,3504.6,2.28267]
[1718984103678,2.28233,3505.2,3504.8,2.28251]
[1718984104277,2.28233,3505.2,3504.7,2.28259]
[1718984104479,2.28239,3505.1,3504.3,2.28286]
[1718984104731,2.28243,3505.1,3504.3,2.28286]
[1718984105037,2.28235,3505.2,3504.1,2.28297]
[1718984105192,2.28293,3504.3,3503.9,2.28316]
[1718984105392,2.28285,3504.4,3504.0,2.28309]
[1718984105762,2.28271,3504.6,3503.6,2.2833]
[1718984105763,2.28274,3504.6,3503.6,2.2833]
[1718984105914,0.228235,3505.1,3503.5,2.28343]
[1718984105915,2.28309,3504.1,3503.5,2.28343]
[1718984106116,2.511081,3504.5,3504.0,2.28309]
[1718984106117,2.28291,3504.3,3504.0,2.28309]
[1718984106311,2.28313,3504.0,3503.7,2.28327]
[1718984106516,2.283,3504.2,3503.4,2.28349]
[1718984106716,2.28274,3504.6,3504.0,2.28309]
[1718984106964,2.28266,3504.7,3504.3,2.28284]
[1718984107252,4.75737,3505.6,3504.8,2.28256]
[1718984107430,2.28238,3505.2,3504.8,0.456523]
[1718984107629,2.28263,3504.8,3504.3,2.2829]
[1718984107850,2.28316,3504.0,3503.8,7.37]
[1718984108157,2.28316,3504.0,3503.6,2.2833]
[1718984108356,2.28316,3504.0,3503.1,2.28368]
[1718984108557,2.28336,3503.7,3503.0,2.28374]
[1718984108732,2.28323,3503.9,3503.4,2.28347]
[1718984108937,2.28292,3504.3,3503.5,2.28341]
[1718984108938,2.2831,3504.1,3503.5,2.28341]
[1718984109118,2.28317,3503.9,3503.4,2.28348]
[1718984109487,2.28324,3503.8,3503.4,2.28348]
[1718984109631,2.2833,3503.7,3503.4,2.28348]
[1718984109965,2.28337,3503.6,3503.1,2.966012]
[1718984110287,2.28353,3503.4,3503.0,2.28375]
[1718984110421,4.56708,3503.4,3503.0,2.28375]
[1718984110617,2.28369,3503.1,3502.5,2.28405]
[1718984110954,2.28356,3503.3,3502.6,2.28395]
[1718984111156,2.28356,3503.3,3502.6,2.28401]
[1718984111469,2.28402,3502.6,3502.2,9.65427]
[1718984111670,2.28389,3502.8,3502.4,2.28414]
[1718984111966,1.713,3501.2,3499.7,0.121452]
[1718984112166,2.28567,3500.1,3499.7,0.121452]
[1718984112333,2.28529,3500.7,3499.7,0.121452]
[1718984112521,2.28541,3500.5,3500.0,2.28568]
[1718984112721,2.28529,3500.7,3499.7,0.121452]
[1718984112722,2.28527,3500.7,3499.7,0.121452]
[1718984113016,2.28546,3500.4,3499.7,0.121452]
[1718984113237,2.28481,3501.4,3499.7,0.121452]
[1718984113238,2.28517,3500.9,3499.7,0.121452]
[1718984113453,2.28579,3499.9,3499.7,0.121452]
[1718984113654,4.57159,3499.9,3499.7,0.121452]
[1718984113864,6.85739,3499.9,3499.7,0.121452]
[1718984114219,6.85738,3499.9,3499.7,0.121452]
[1718984114431,9.14319,3499.9,3499.7,0.121452]
[1718984114641,0.68514,3499.8,3499.7,0.121452]
[1718984114967,9.14319,3499.9,3499.7,0.121452]
[1718984115128,1.713,3499.8,3499.7,0.121452]
[1718984115524,4.713,3499.8,3499.7,0.121452]
[1718984116429,1.713,3499.8,3499.7,0.121452]
[1718984116629,2.28573,3500.0,3499.7,0.121452]
[1718984116935,2.28563,3500.2,3499.7,2.407342]
[1718984117145,2.28554,3500.3,3499.7,0.121452]
[1718984117458,2.28532,3500.6,3499.7,0.121452]
[1718984117658,2.2827,3501.0,3499.9,2.28576]
[1718984117659,2.28557,3500.3,3499.9,2.28576]
[1718984117958,6.85742,3499.9,3499.7,0.121452]
[1718984118286,10.85624,3499.9,3499.7,0.121452]
[1718984118427,1.713,3499.8,3499.7,0.121452]
[1718984118641,6.85947,3498.8,3498.7,0.006]
[1718984119148,2.28649,3498.8,3498.7,0.006]
[1718984119472,4.57298,3498.8,3498.7,0.006]
[1718984119672,6.85947,3498.8,3498.7,0.006]
[1718984119842,4.57298,3498.8,3498.7,0.006]
[1718984120285,6.85947,3498.8,3498.7,0.006]
[1718984120654,4.57298,3498.8,3498.7,0.006]
[1718984120863,2.28635,3499.1,3498.7,0.006]
[1718984121081,2.2976,3499.9,3499.0,2.28636]
[1718984121082,1.713,3499.7,3499.0,2.28636]
[1718984121570,2.28634,3499.1,3498.7,0.006]
[1718984121977,6.85931,3498.9,3498.7,0.006]
[1718984122684,6.85947,3498.8,3498.7,0.006]
[1718984122864,7.473147,3498.8,3498.7,0.006]
[1718984123535,11.472637,3498.8,3498.7,0.006]
[1718984123733,12.186147,3498.8,3498.7,0.006]
[1718984123939,8.186657,3498.8,3498.7,0.006]
[1718984124184,10.473147,3498.8,3498.7,0.006]
[1718984124482,5.186657,3498.8,3498.7,0.006]
[1718984124634,2.28649,3498.8,3498.7,0.006]
[1718984125277,4.57298,3498.8,3498.7,0.006]
[1718984125481,8.57247,3498.8,3498.7,0.006]
[1718984125805,10.85896,3498.8,3498.7,0.006]
[1718984126577,11.57247,3498.8,3498.7,0.006]
[1718984126782,9.85947,3498.8,3498.7,0.006]
[1718984126943,13.85896,3498.8,3498.7,0.006]
[1718984127141,11.57247,3498.8,3498.7,0.006]
[1718984127478,13.85896,3498.8,3498.7,0.006]
[1718984128042,25.845417,3498.8,3498.7,0.006]
[1718984128247,2.28731,3497.6,3496.8,2.2878]
[1718984128666,5.28711,3497.9,3496.8,2.28777]
[1718984128883,2.2873,3497.6,3496.4,2.28803]
[1718984129102,2.28737,3497.5,3496.2,2.409632]
[1718984129256,2.28807,3496.4,3496.2,0.8297142]
[1718984129460,4.00051,3497.3,3496.2,0.8297142]
[1718984129461,2.28783,3496.8,3496.2,0.121452]
[1718984129662,2.28783,3496.8,3494.0,2.28961]
[1718984129663,2.28822,3496.2,3495.4,2.28866]
[1718984129979,4.59572,3496.4,3495.9,2.28835]
[1718984130193,2.28799,3496.6,3495.9,2.28835]
[1718984130366,2.288,3496.5,3496.2,2.28817]
[1718984130586,4.713,3497.0,3496.2,2.28815]
[1718984130770,2.28801,3496.5,3496.1,2.28826]
[1718984130955,3.0,3497.4,3495.6,2.815]
[1718984131152,0.75,3497.4,3495.6,2.815]
[1718984131505,2.28811,3496.4,3495.8,2.2884]
[1718984131797,1.713,3496.7,3495.6,2.28856]
[1718984131798,2.28806,3496.5,3495.6,2.28854]
[1718984132000,2.288,3496.5,3496.1,2.28824]
[1718984132171,2.28807,3496.4,3496.1,2.28826]
[1718984132492,2.28794,3496.6,3495.6,2.28854]
[1718984132665,2.28806,3496.5,3496.0,2.28832]
[1718984132854,2.2882,3496.2,3495.8,2.28843]
[1718984133058,4.0009,3496.7,3495.4,0.23019919]
[1718984133059,2.28829,3496.1,3495.4,0.23019919]
[1718984133293,2.28828,3496.1,3494.9,2.28902]
[1718984133592,7.00114,3496.3,3495.2,2.28884]
[1718984133799,2.28826,3496.1,3495.3,2.30205192]
[1718984134013,2.28845,3495.9,3495.3,0.24353711]
[1718984134161,2.28859,3495.7,3495.3,0.01333192]
[1718984134362,2.28856,3495.7,3495.4,2.2887]
[1718984134699,2.28842,3495.9,3495.3,0.01333192]
[1718984134855,2.288,3496.5,3495.4,2.28867]
[1718984135208,2.28834,3496.0,3495.3,2.53229811]
[1718984135496,2.28846,3495.8,3495.4,2.28872]
[1718984135803,2.28846,3495.8,3492.9,2.29031]
[1718984135804,2.28963,3494.0,3492.9,2.29031]
[1718984135961,2.3264,3495.5,3492.9,2.29035]
[1718984135962,1.713,3494.6,3492.9,2.29035]
[1718984136301,3.0,3495.0,3492.4,2.382]
[1718984136302,2.28965,3494.0,3493.0,2.519315]
[1718984136512,2.28918,3494.7,3492.4,2.382]
[1718984136513,4.528,3494.1,3492.4,2.382]
[1718984136661,3.0,3494.2,3492.4,4.67267]
[1718984137026,2.28988,3493.7,3493.2,2.29015]
[1718984137162,2.28988,3493.7,3492.6,2.8913842]
[1718984137163,1.713,3493.7,3492.6,2.8913842]
[1718984137367,2.28965,3494.0,3493.7,2.28983]
[1718984137595,2.28967,3494.0,3492.6,0.6008642]
[1718984137897,2.2896,3494.1,3493.7,2.28983]
[1718984138264,3.017,3494.6,3493.3,2.29005]
[1718984138469,2.28971,3493.9,3492.7,0.52735242]
[1718984138668,2.2899,3493.6,3493.1,2.29021]
[1718984138973,5.28934,3494.5,3493.6,2.28986]
[1718984139161,2.28958,3494.1,3493.5,2.28996]
[1718984139367,2.3594,3495.6,3494.2,2.28946]
[1718984139562,2.3594,3495.6,3493.6,2.28989]
[1718984139563,2.3594,3495.6,3493.8,2.815]
[1718984139799,2.3594,3495.6,3494.2,2.2895]
[1718984139991,2.3594,3495.6,3493.8,2.815]
[1718984139992,2.3594,3495.6,3494.7,2.28914]
[1718984140237,2.28864,3495.6,3494.7,2.28914]
[1718984140394,2.28872,3495.4,3495.0,2.28897]
[1718984140593,2.28846,3495.9,3495.0,2.28897]
[1718984140594,2.2888,3495.3,3495.0,2.28897]
[1718984140807,3.017,3494.9,3492.7,0.52735242]
[1718984141007,3.017,3494.9,3493.3,2.29009]
[1718984141288,4.00233,3494.5,3493.9,2.28967]
[1718984141494,4.00233,3494.5,3493.7,2.28981]
[1718984141825,2.28946,3494.3,3493.6,2.28989]
[1718984142000,2.28946,3494.3,3493.9,2.28969]
[1718984142001,2.2895,3494.3,3493.9,2.28969]
[1718984142208,3.017,3494.8,3493.7,0.04683135]
[1718984142209,1.713,3494.6,3493.7,0.04683135]
[1718984142530,1.713,3494.6,3493.0,2.815]
[1718984142531,2.28967,3494.0,3493.8,0.04682234]
[1718984142726,2.28944,3494.4,3493.8,2.33658234]
[1718984142928,2.28947,3494.3,3493.9,2.28969]
[1718984143135,2.28951,3494.2,3493.8,0.04682234]
[1718984143331,1.713,3494.6,3493.1,2.815]
[1718984143332,1.713,3494.6,3493.9,2.28968]
[1718984143495,2.28953,3494.2,3493.8,2.34326125]
[1718984143692,4.00237,3494.4,3493.8,0.05351125]
[1718984143931,2.2898,3493.8,3493.3,2.29004]
[1718984144090,2.2898,3493.8,3492.8,0.29393944]
[1718984144091,2.28972,3493.9,3493.0,2.29026]
[1718984144288,2.28965,3494.0,3492.8,0.29393944]
[1718984144289,1.713,3494.0,3493.1,0.04688544]
[1718984144530,1.713,3494.0,3492.8,0.29393944]
[1718984144531,2.28971,3493.9,3493.0,2.29029]
[1718984144742,2.2895,3494.2,3493.2,2.33698643]
[1718984144890,2.28979,3493.8,3493.2,2.29015]
[1718984145098,0.75,3494.5,3493.3,0.04165992]
[1718984145294,0.55,3494.4,3492.8,2.29037]
[1718984145528,4.00301,3493.5,3492.9,2.31920373]
[1718984145732,4.00301,3493.5,3492.9,0.02886373]
[1718984145733,2.29025,3493.1,3492.9,0.02886373]
[1718984146036,2.29029,3493.0,3492.9,0.02886373]
[1718984146341,5.28966,3494.0,3492.9,2.31920373]
[1718984146342,2.29007,3493.4,3492.9,2.31920373]
[1718984146508,2.29016,3493.2,3492.9,2.29034]
[1718984146709,2.28984,3493.7,3493.0,0.02885892]
[1718984146896,2.28981,3493.8,3493.1,2.29017]
[1718984147091,2.28961,3494.1,3493.2,2.31899931]
[1718984147392,0.228961,3494.1,3493.2,0.02884931]
[1718984147594,2.28997,3493.5,3493.2,2.31900931]
[1718984147822,2.28997,3493.5,3493.2,2.29016]
[1718984148034,2.28991,3493.6,3493.3,2.3189345]
[1718984148509,1.713,3493.8,3493.3,0.0288445]
[1718984148834,2.29018,3493.2,3492.7,2.29044]
[1718984149132,2.29015,3493.3,3492.8,0.02886854]
[1718984149315,4.00315,3493.3,3492.8,2.31927854]